{"text_format":"2","workbook":"xlsx","n_sheets":1,"sheets":["Informe 6_Tdp"],"not_rendered":{"charts":0,"images":0,"macros":0,"external_links":0,"defined_names":2,"comments":0,"pivot_tables":0},"unopened":[],"bounds":{"document_bytes":16777216,"sheet_cells":100000,"run_cost":"one","rows_first":2000,"rows_last":500,"rows_between":2000,"halvings":0,"cell_chars":16384,"cell_head_chars":4096},"cells_cut":0,"cells_raw":0,"read":"whole","date_system":"1900"}

{"sheet":"Informe 6_Tdp","index":0,"n_rows":97,"n_cols":8,"rows_kept":97,"cut":false,"hidden":false,"merged":[[4,1,4,7],[6,1,6,3],[7,1,7,3],[2,1,2,7]]}
[null,"TELEFÓNICA DEL PERÚ S.A.A.-2015-6 INGRESOS OPERATIVOS MAYORISTAS POR EMPRESA-15042016"]
[]
[null,"INFORME 6: INGRESOS OPERATIVOS MAYORISTAS POR EMPRESA"]
[]
[null,"Periodo de reporte: Al 15 de Diciembre 2015"]
[]
[null,"Expresado en Miles Nuevos de Soles",null,null,"Ingresos calculados (en base a precios de lista)","Ajustes\n(descuentos y\npromociones)","Estado de Resultados de Contabilidad Separada (valor facturado)","Nota"]
[null,"INGRESOS OPERATIVOS MAYORISTAS",null,null,{"$f":"E9+E20","v":358125.6031768134},0,{"$f":"E8-F8","v":358125.6031768134}]
[null,"De empresas operadoras vinculadas",null,null,{"$f":"+E10+E12+E15","v":13145.841629310002},0,{"$f":"E9-F9","v":13145.841629310002},6.1]
[null,null,"MEDIA NETWORKS",null,21.805199999999999,0,21.805199999999999]
[null,null,null,"Alquiler y Transmisión a otros operadores",21.805199999999999,0,21.805199999999999]
[null,null,"TELEFONICA INTL. WHOLESALE SERVICES PERÚ S.A.C.",null,13121.184959310001,0,13121.184959310001]
[null,null,null,"Alquiler y Transmisión a otros operadores",12843.017439310001,0,12843.017439310001]
[null,null,null,"Instalación para otros operadores",278.16752000000002,0,278.16752000000002]
[null,null,"TELEFONICA MULTIMEDIA",null,2.8514699999999999,0,2.8514699999999999]
[null,null,null,"Alquiler y Transmisión a otros operadores",0.23646000000000003,0,0.23646000000000003]
[null,null,null,"Terminación de Llamadas en la Red del Servicio de Telefonía Fija Local",1.392E-2,null,1.392E-2]
[null,null,null,"Transporte Conmutado de Larga Distancia Nacional",2.9999999999999997E-5,null,2.9999999999999997E-5]
[null,null,null,"Enlaces de Interconexión",2.6010599999999999,0,2.6010599999999999]
[null,"De empresas operadoras no vinculadas",null,null,344979.76154750341,0,344979.76154750341,6.1]
[null,null,"AMERICA MOVIL PERU S.A.C.",null,46787.208624451283,0,46787.208624451283]
[null,null,null,"Acceso a los Teléfonos de Uso Público",622.26838137999948,0,622.26838137999948]
[null,null,null,"Alquiler y Transmisión a otros operadores",24098.473271561219,0,24098.473271561219]
[null,null,null,"Facturación y Recaudación",2.4845289309999997E-2,0,2.4845289309999997E-2]
[null,null,null,"Instalación para otros operadores",425.77574595999988,0,425.77574595999988]
[null,null,null,"Terminación de Llamadas en la Red de Servicio Móvil",15867.493734091227,0,15867.493734091227]
[null,null,null,"Terminación de Llamadas en la Red del Servicio de Telefonía Fija Local",4665.5447064398595,0,4665.5447064398595]
[null,null,null,"Transporte Conmutado de Larga Distancia Nacional",51.199715057597885,0,51.199715057597885]
[null,null,null,"Transporte Conmutado Local",1056.4282246720607,0,1056.4282246720607]
[null,null,"AMERICATEL PERU S.A.",null,8893.9091738396164,0,8893.9091738396164]
[null,null,null,"Acceso a los Teléfonos de Uso Público",33.207877969999991,0,33.207877969999991]
[null,null,null,"Alquiler y Transmisión a otros operadores",2022.400345700926,0,2022.400345700926]
[null,null,null,"Facturación y Recaudación",178.53423025999999,0,178.53423025999999]
[null,null,null,"Instalación para otros operadores",292.74873161999994,0,292.74873161999994]
[null,null,null,"Terminación de Llamadas en la Red de Servicio Móvil",3566.6530684052195,0,3566.6530684052195]
[null,null,null,"Terminación de Llamadas en la Red del Servicio de Telefonía Fija Local",2649.4666403901247,0,2649.4666403901247]
[null,null,null,"Transporte Conmutado de Larga Distancia Nacional",19.58868318810001,0,19.58868318810001]
[null,null,null,"Transporte Conmutado Local",131.30959630524711,0,131.30959630524711]
[null,null,"CLARO",null,142247.61928382027,0,142247.61928382027]
[null,null,null,"Terminación de Llamadas en la Red de Servicio Móvil",142247.61928382027,0,142247.61928382027]
[null,null,"CONVERGIA PERU S.A.",null,2865.0900445938069,0,2865.0900445938069]
[null,null,null,"Acceso a los Teléfonos de Uso Público",27.512836270000005,0,27.512836270000005]
[null,null,null,"Alquiler y Transmisión a otros operadores",20.306893787313467,0,20.306893787313467]
[null,null,null,"Facturación y Recaudación",29.825200212870339,0,29.825200212870339]
[null,null,null,"Instalación para otros operadores",75.708816199999987,0,75.708816199999987]
[null,null,null,"Terminación de Llamadas en la Red de Servicio Móvil",2251.9324106301719,0,2251.9324106301719]
[null,null,null,"Terminación de Llamadas en la Red del Servicio de Telefonía Fija Local",207.96783064430696,0,207.96783064430696]
[null,null,null,"Transporte Conmutado de Larga Distancia Nacional",17.976155164185119,0,17.976155164185119]
[null,null,null,"Transporte Conmutado Local",233.85990168495874,0,233.85990168495874]
[null,null,"ENTEL PERÚ S.A.",null,100391.54912644014,0,100391.54912644014]
[null,null,null,"Acceso a los Teléfonos de Uso Público",16.33173,0,16.33173]
[null,null,null,"Alquiler y Transmisión a otros operadores",19283.236306984229,0,19283.236306984229]
[null,null,null,"Instalación para otros operadores",3642.6175407567011,0,3642.6175407567011]
[null,null,null,"Terminación de Llamadas en la Red de Servicio Móvil",76028.680140657874,0,76028.680140657874]
[null,null,null,"Terminación de Llamadas en la Red del Servicio de Telefonía Fija Local",1061.3614400612921,0,1061.3614400612921]
[null,null,null,"Transporte Conmutado de Larga Distancia Nacional",81.544882460461494,0,81.544882460461494]
[null,null,null,"Transporte Conmutado Local",277.77708551958932,0,277.77708551958932]
[null,null,"IDT PERU S.R.L.",null,3722.0071380527111,0,3722.0071380527111]
[null,null,null,"Acceso a los Teléfonos de Uso Público",8.1036262599999986,0,8.1036262599999986]
[null,null,null,"Alquiler y Transmisión a otros operadores",528.20132467846179,0,528.20132467846179]
[null,null,null,"Facturación y Recaudación",10.11808719529593,0,10.11808719529593]
[null,null,null,"Instalación para otros operadores",92.669269818424098,0,92.669269818424098]
[null,null,null,"Terminación de Llamadas en la Red de Servicio Móvil",1604.4413625119878,0,1604.4413625119878]
[null,null,null,"Terminación de Llamadas en la Red del Servicio de Telefonía Fija Local",1013.1923750573006,0,1013.1923750573006]
[null,null,null,"Transporte Conmutado de Larga Distancia Nacional",25.428740050649555,0,25.428740050649555]
[null,null,null,"Transporte Conmutado Local",162.29392298059133,null,162.29392298059133]
[null,null,null,"Enlaces de Interconexión",277.55842949999999,0,277.55842949999999]
[null,null,"IMPSAT",null,5738.9809905321872,0,5738.9809905321872]
[null,null,null,"Acceso a los Teléfonos de Uso Público",15.229889999999997,0,15.229889999999997]
[null,null,null,"Alquiler y Transmisión a otros operadores",2694.2904044560746,0,2694.2904044560746]
[null,null,null,"Instalación para otros operadores",188.37718433781566,0,188.37718433781566]
[null,null,null,"Terminación de Llamadas en la Red de Servicio Móvil",2107.6738336071803,0,2107.6738336071803]
[null,null,null,"Terminación de Llamadas en la Red del Servicio de Telefonía Fija Local",541.71901619460039,0,{"$f":"E73-F73","v":541.71901619460039}]
[null,null,null,"Transporte Conmutado de Larga Distancia Nacional",13.195722848672833,0,13.195722848672833]
[null,null,null,"Transporte Conmutado Local",138.28357908784184,0,138.28357908784184]
[null,null,null,"Enlaces de Interconexión",40.211360000000006,0,40.211360000000006]
[null,null,"INTERNEXA S.A,AMERICA MOVIL, ENTEL",null,4388.2434399999993,0,4388.2434399999993]
[null,null,null,"Instalación para otros operadores",4388.2434399999993,0,4388.2434399999993]
[null,null,"VIETTEL PERÚ S.A.C.",null,11344.243888589777,0,11344.243888589777]
[null,null,null,"Acceso a los Teléfonos de Uso Público",0.49178000000000005,0,0.49178000000000005]
[null,null,null,"Alquiler y Transmisión a otros operadores",166.30132,0,166.30132]
[null,null,null,"Instalación para otros operadores",552.89455599999997,0,552.89455599999997]
[null,null,null,"Terminación de Llamadas en la Red de Servicio Móvil",10375.733564934431,0,10375.733564934431]
[null,null,null,"Terminación de Llamadas en la Red del Servicio de Telefonía Fija Local",188.69673606850822,0,188.69673606850822]
[null,null,null,"Transporte Conmutado de Larga Distancia Nacional",46.328495488315696,0,46.328495488315696]
[null,null,null,"Transporte Conmutado Local",13.79743609852331,0,13.79743609852331]
[null,null,"Otros Operadores",null,18600.909837183743,0,18600.909837183743,6.2]
[null,null,null,"Acceso a los Teléfonos de Uso Público",186.6229066538082,0,186.6229066538082]
[null,null,null,"Alquiler y Transmisión a otros operadores",10886.252369023099,0,10886.252369023099]
[null,null,null,"Facturación y Recaudación",268.62627121133283,0,268.62627121133283]
[null,null,null,"Instalación para otros operadores",1828.1552540998812,0,1828.1552540998812]
[null,null,null,"Terminación de Llamadas en la Red de Servicio Móvil",4502.3055687442093,0,4502.3055687442093]
[null,null,null,"Terminación de Llamadas en la Red del Servicio de Telefonía Fija Local",571.80349020514313,0,571.80349020514313]
[null,null,null,"Transporte Conmutado de Larga Distancia Nacional",50.220214549969363,0,50.220214549969363]
[null,null,null,"Transporte Conmutado Local",203.50180099629856,0,203.50180099629856]
[null,null,null,"Enlaces de Interconexión",103.42196170000011,0,103.42196170000011]
[null,"Ingreso Imputado",null,null,0,0,0,0]